[Event "January 9 Late 2024"]
[Site "https://www.chess.com"]
[Date "2024.01.09"]
[Round "6"]
[White "Antonio, Jorge Carlos"]
[Black "Jaiveer Mahendru"]
[Result "0-1"]
[Board "161"]
[TimeControl "180+1"]
[WhiteFideId "113190"]
[BlackFideId "25611151"]
[WhiteElo "2306"]
[BlackElo "2499"]
[WhiteTeam "ARG"]
[BlackTeam "IND"]
[WhiteClock "0:00:00"]
[BlackClock "0:00:17"]

1. d4 {[%clk 0:03:00]}  f5 {[%clk 0:02:57]} 2. g3 {[%clk 0:02:56]}  Nf6 {[%clk 0:02:58]} 3. Bg2 {[%clk 0:02:54]}  g6 {[%clk 0:02:58]} 4. Nh3 {[%clk 0:02:53]}  Bg7 {[%clk 0:02:58]} 5. O-O {[%clk 0:02:46]}  O-O {[%clk 0:02:58]} 6. c3 {[%clk 0:02:41]}  d6 {[%clk 0:02:56]} 7. Re1 {[%clk 0:02:39]}  e5 {[%clk 0:02:56]} 8. Qb3+ {[%clk 0:02:33]}  Kh8 {[%clk 0:02:53]} 9. dxe5 {[%clk 0:02:30]}  dxe5 {[%clk 0:02:52]} 10. Bxb7 {[%clk 0:02:26]}  Bxb7 {[%clk 0:02:53]} 11. Qxb7 {[%clk 0:02:23]}  Nbd7 {[%clk 0:02:54]} 12. Qc6 {[%clk 0:02:20]}  Rb8 {[%clk 0:02:45]} 13. Ng5 {[%clk 0:02:15]}  Rb6 {[%clk 0:02:44]} 14. Qa4 {[%clk 0:02:11]}  h6 {[%clk 0:02:40]} 15. Nf3 {[%clk 0:02:08]}  Qa8 {[%clk 0:02:35]} 16. Nbd2 {[%clk 0:02:01]}  e4 {[%clk 0:02:33]} 17. Nh4 {[%clk 0:01:58]}  Kh7 {[%clk 0:02:32]} 18. Nc4 {[%clk 0:01:54]}  Re6 {[%clk 0:02:25]} 19. Be3 {[%clk 0:01:45]}  Ng4 {[%clk 0:02:11]} 20. Qxd7 {[%clk 0:01:39]}  Rc6 {[%clk 0:02:05]} 21. Bd4 {[%clk 0:01:34]}  Rg8 {[%clk 0:01:58]} 22. Ne5 {[%clk 0:01:19]}  Nxe5 {[%clk 0:01:23]} 23. Bxe5 {[%clk 0:01:18]}  Kh8 {[%clk 0:01:23]} 24. Bxg7+ {[%clk 0:01:05]}  Rxg7 {[%clk 0:01:23]} 25. Qd4 {[%clk 0:01:05]}  Qf8 {[%clk 0:01:19]} 26. Rad1 {[%clk 0:00:58]}  g5 {[%clk 0:01:17]} 27. Ng2 {[%clk 0:00:39]}  h5 {[%clk 0:01:16]} 28. Qd8 {[%clk 0:00:36]}  Qxd8 {[%clk 0:01:08]} 29. Rxd8+ {[%clk 0:00:35]}  Kh7 {[%clk 0:01:09]} 30. Red1 {[%clk 0:00:35]}  f4 {[%clk 0:01:01]} 31. R8d7 {[%clk 0:00:30]}  f3 {[%clk 0:00:57]} 32. Rxg7+ {[%clk 0:00:28]}  Kxg7 {[%clk 0:00:56]} 33. exf3 {[%clk 0:00:27]}  exf3 {[%clk 0:00:56]} 34. Ne3 {[%clk 0:00:27]}  Rb6 {[%clk 0:00:51]} 35. b3 {[%clk 0:00:27]}  Ra6 {[%clk 0:00:50]} 36. Rd2 {[%clk 0:00:26]}  g4 {[%clk 0:00:49]} 37. h3 {[%clk 0:00:24]}  gxh3 {[%clk 0:00:33]} 38. Kh2 {[%clk 0:00:23]}  Kf6 {[%clk 0:00:34]} 39. Kxh3 {[%clk 0:00:24]}  Kg5 {[%clk 0:00:35]} 40. Rd5+ {[%clk 0:00:22]}  Kg6 {[%clk 0:00:34]} 41. Kh4 {[%clk 0:00:19]}  Rxa2 {[%clk 0:00:33]} 42. Rg5+ {[%clk 0:00:18]}  Kf6 {[%clk 0:00:33]} 43. Rf5+ {[%clk 0:00:18]}  Kg6 {[%clk 0:00:33]} 44. Rxf3 {[%clk 0:00:19]}  Ra3 {[%clk 0:00:29]} 45. Kh3 {[%clk 0:00:15]}  Rxb3 {[%clk 0:00:29]} 46. Nd5 {[%clk 0:00:14]}  c5 {[%clk 0:00:26]} 47. Kg2 {[%clk 0:00:13]}  a5 {[%clk 0:00:25]} 48. Nf4+ {[%clk 0:00:13]}  Kh6 {[%clk 0:00:24]} 49. Re3 {[%clk 0:00:13]}  a4 {[%clk 0:00:22]} 50. Re6+ {[%clk 0:00:12]}  Kg5 {[%clk 0:00:21]} 51. Ra6 {[%clk 0:00:12]}  a3 {[%clk 0:00:20]} 52. c4 {[%clk 0:00:12]}  Rb4 {[%clk 0:00:18]} 53. Rxa3 {[%clk 0:00:11]}  Rxc4 {[%clk 0:00:18]} 54. Ra5 {[%clk 0:00:12]}  Kg4 {[%clk 0:00:15]} 55. Ra6 {[%clk 0:00:09]}  h4 {[%clk 0:00:13]} 56. Rg6+ {[%clk 0:00:08]}  Kf5 {[%clk 0:00:14]} 57. Rh6 {[%clk 0:00:03]}  hxg3 {[%clk 0:00:14]} 58. fxg3 {[%clk 0:00:03]}  Kg4 {[%clk 0:00:15]} 59. Rh4+ {[%clk 0:00:02]}  Kf5 {[%clk 0:00:16]} 60. Kh3 {[%clk 0:00:00]}  Rc2 {[%clk 0:00:17]} 0-1

[Event "January 9 Late 2024"]
[Site "https://www.chess.com"]
[Date "2024.01.09"]
[Round "6"]
[White "Spichkin, Alexander"]
[Black "Kappeler, Kaspar"]
[Result "1-0"]
[Board "163"]
[TimeControl "180+1"]
[WhiteFideId "4144074"]
[BlackFideId "1309072"]
[WhiteElo "2463"]
[BlackElo "2266"]
[WhiteTeam "RUS"]
[BlackTeam "SUI"]
[WhiteClock "0:01:54"]
[BlackClock "0:00:00"]

1. f4 {[%clk 0:03:00]}  d5 {[%clk 0:02:57]} 2. Nf3 {[%clk 0:02:56]}  Nf6 {[%clk 0:02:57]} 3. e3 {[%clk 0:02:56]}  g6 {[%clk 0:02:58]} 4. Be2 {[%clk 0:02:55]}  Bg7 {[%clk 0:02:59]} 5. O-O {[%clk 0:02:56]}  O-O {[%clk 0:02:59]} 6. d3 {[%clk 0:02:57]}  c5 {[%clk 0:02:58]} 7. Kh1 {[%clk 0:02:58]}  Nc6 {[%clk 0:02:59]} 8. a4 {[%clk 0:02:58]}  Qc7 {[%clk 0:02:55]} 9. Nc3 {[%clk 0:02:58]}  a6 {[%clk 0:02:55]} 10. e4 {[%clk 0:02:58]}  d4 {[%clk 0:02:40]} 11. Nb1 {[%clk 0:02:57]}  e5 {[%clk 0:02:33]} 12. Qe1 {[%clk 0:02:54]}  Ng4 {[%clk 0:02:23]} 13. Qg3 {[%clk 0:02:50]}  Ne3 {[%clk 0:02:08]} 14. Bxe3 {[%clk 0:02:40]}  dxe3 {[%clk 0:02:08]} 15. f5 {[%clk 0:02:33]}  gxf5 {[%clk 0:01:54]} 16. exf5 {[%clk 0:02:30]}  Kh8 {[%clk 0:01:30]} 17. Nc3 {[%clk 0:02:29]}  Nd4 {[%clk 0:01:25]} 18. Rae1 {[%clk 0:02:23]}  Nxc2 {[%clk 0:01:15]} 19. Nd5 {[%clk 0:02:23]}  Qc6 {[%clk 0:01:01]} 20. f6 {[%clk 0:02:13]}  Bh6 {[%clk 0:00:45]} 21. Qh4 {[%clk 0:02:00]}  Bf4 {[%clk 0:00:05]} 22. Nxf4 {[%clk 0:01:54]}  exf4 {[%clk 0:00:00]} 23. Ng5 {[%clk 0:01:54]} 1-0

[Event "January 9 Late 2024"]
[Site "https://www.chess.com"]
[Date "2024.01.09"]
[Round "6"]
[White "Krzywda, Andrzej"]
[Black "Petersson, Kjell"]
[Result "1-0"]
[Board "164"]
[TimeControl "180+1"]
[WhiteFideId "1114565"]
[BlackFideId "1705148"]
[WhiteElo "2404"]
[BlackElo "2148"]
[WhiteTeam "POL"]
[BlackTeam "SWE"]
[WhiteClock "0:02:14"]
[BlackClock "0:01:13"]

1. e4 {[%clk 0:03:00]}  c5 {[%clk 0:03:00]} 2. Nf3 {[%clk 0:03:00]}  d6 {[%clk 0:03:00]} 3. d4 {[%clk 0:03:01]}  cxd4 {[%clk 0:03:01]} 4. Nxd4 {[%clk 0:03:01]}  Nf6 {[%clk 0:03:01]} 5. Nc3 {[%clk 0:03:02]}  g6 {[%clk 0:03:02]} 6. Be3 {[%clk 0:03:02]}  Bg7 {[%clk 0:03:02]} 7. f3 {[%clk 0:03:03]}  O-O {[%clk 0:03:02]} 8. Qd2 {[%clk 0:03:03]}  Nc6 {[%clk 0:03:03]} 9. O-O-O {[%clk 0:03:04]}  d5 {[%clk 0:03:03]} 10. exd5 {[%clk 0:03:03]}  Nxd5 {[%clk 0:03:03]} 11. Nxc6 {[%clk 0:03:04]}  bxc6 {[%clk 0:03:03]} 12. Bd4 {[%clk 0:03:04]}  Bxd4 {[%clk 0:03:03]} 13. Qxd4 {[%clk 0:03:04]}  Qb6 {[%clk 0:03:03]} 14. Na4 {[%clk 0:03:02]}  Qc7 {[%clk 0:03:04]} 15. g3 {[%clk 0:02:58]}  Be6 {[%clk 0:02:48]} 16. Nc5 {[%clk 0:02:57]}  Bc8 {[%clk 0:02:17]} 17. Bc4 {[%clk 0:02:52]}  e6 {[%clk 0:02:16]} 18. h4 {[%clk 0:02:39]}  f5 {[%clk 0:01:53]} 19. h5 {[%clk 0:02:34]}  g5 {[%clk 0:01:53]} 20. h6 {[%clk 0:02:32]}  Rb8 {[%clk 0:01:47]} 21. Rh5 {[%clk 0:02:30]}  Qe7 {[%clk 0:01:43]} 22. Re1 {[%clk 0:02:19]}  Rf7 {[%clk 0:01:26]} 23. f4 {[%clk 0:02:15]}  g4 {[%clk 0:01:24]} 24. Rg5+ {[%clk 0:02:15]}  Kf8 {[%clk 0:01:13]} 25. Qh8# {[%clk 0:02:14]} 1-0

[Event "January 9 Late 2024"]
[Site "https://www.chess.com"]
[Date "2024.01.09"]
[Round "6"]
[White "Thake, Conrad"]
[Black "Meduri, Aakaash"]
[Result "0-1"]
[Board "165"]
[TimeControl "180+1"]
[WhiteFideId "5602947"]
[BlackFideId "2032252"]
[WhiteElo "1854"]
[BlackElo "2403"]
[WhiteTeam "MLT"]
[BlackTeam "USA"]
[WhiteClock "0:00:00"]
[BlackClock "0:00:30"]

1. e4 {[%clk 0:03:00]}  d5 {[%clk 0:02:57]} 2. exd5 {[%clk 0:02:59]}  Qxd5 {[%clk 0:02:58]} 3. Nc3 {[%clk 0:02:59]}  Qd6 {[%clk 0:02:56]} 4. d4 {[%clk 0:02:58]}  Nf6 {[%clk 0:02:57]} 5. Nf3 {[%clk 0:02:58]}  a6 {[%clk 0:02:57]} 6. Be2 {[%clk 0:02:56]}  b5 {[%clk 0:02:57]} 7. a3 {[%clk 0:02:55]}  Bb7 {[%clk 0:02:57]} 8. O-O {[%clk 0:02:54]}  e6 {[%clk 0:02:56]} 9. Bg5 {[%clk 0:02:46]}  Be7 {[%clk 0:02:54]} 10. Ne5 {[%clk 0:02:28]}  O-O {[%clk 0:02:50]} 11. Bf3 {[%clk 0:02:23]}  Nd5 {[%clk 0:02:33]} 12. Bxe7 {[%clk 0:02:21]}  Qxe7 {[%clk 0:02:32]} 13. Nxd5 {[%clk 0:02:17]}  Bxd5 {[%clk 0:02:31]} 14. Re1 {[%clk 0:02:15]}  c6 {[%clk 0:02:22]} 15. b3 {[%clk 0:02:07]}  Qd6 {[%clk 0:02:03]} 16. Bxd5 {[%clk 0:01:35]}  cxd5 {[%clk 0:01:57]} 17. Re3 {[%clk 0:01:27]}  Nd7 {[%clk 0:01:53]} 18. Nxd7 {[%clk 0:01:20]}  Qxd7 {[%clk 0:01:53]} 19. Rg3 {[%clk 0:01:11]}  Rac8 {[%clk 0:01:51]} 20. Qg4 {[%clk 0:01:10]}  g6 {[%clk 0:01:51]} 21. c3 {[%clk 0:01:08]}  Rc6 {[%clk 0:01:43]} 22. Qh4 {[%clk 0:00:58]}  Rfc8 {[%clk 0:01:33]} 23. Rc1 {[%clk 0:00:53]}  Qd8 {[%clk 0:01:28]} 24. Qh6 {[%clk 0:00:50]}  Qf8 {[%clk 0:01:26]} 25. Qg5 {[%clk 0:00:47]}  Qxa3 {[%clk 0:01:25]} 26. Rh3 {[%clk 0:00:39]}  Qf8 {[%clk 0:01:12]} 27. Qh4 {[%clk 0:00:21]}  Qg7 {[%clk 0:01:08]} 28. Qf4 {[%clk 0:00:17]}  b4 {[%clk 0:01:03]} 29. Qd2 {[%clk 0:00:12]}  bxc3 {[%clk 0:01:00]} 30. Rhxc3 {[%clk 0:00:12]}  Rxc3 {[%clk 0:00:56]} 31. Rxc3 {[%clk 0:00:12]}  Rxc3 {[%clk 0:00:55]} 32. Qxc3 {[%clk 0:00:12]}  Qf8 {[%clk 0:00:54]} 33. b4 {[%clk 0:00:12]}  Qb8 {[%clk 0:00:52]} 34. Kf1 {[%clk 0:00:12]}  Qb5+ {[%clk 0:00:53]} 35. Ke1 {[%clk 0:00:11]}  Kg7 {[%clk 0:00:52]} 36. f3 {[%clk 0:00:09]}  Qa4 {[%clk 0:00:52]} 37. Kd2 {[%clk 0:00:09]}  Qa2+ {[%clk 0:00:53]} 38. Qc2 {[%clk 0:00:08]}  Qa1 {[%clk 0:00:42]} 39. Qc3 {[%clk 0:00:07]}  Qa2+ {[%clk 0:00:39]} 40. Qc2 {[%clk 0:00:07]}  Qa1 {[%clk 0:00:40]} 41. Qc3 {[%clk 0:00:07]}  Qg1 {[%clk 0:00:38]} 42. Qc6 {[%clk 0:00:04]}  Qxd4+ {[%clk 0:00:37]} 43. Kc2 {[%clk 0:00:03]}  Qxb4 {[%clk 0:00:33]} 44. h4 {[%clk 0:00:00]}  Qxh4 {[%clk 0:00:30]} 0-1

[Event "January 9 Late 2024"]
[Site "https://www.chess.com"]
[Date "2024.01.10"]
[Round "6"]
[White "Mena, Martin"]
[Black "Heberla, Bartlomiej"]
[Result "0-1"]
[Board "166"]
[TimeControl "180+1"]
[WhiteFideId "10651225"]
[BlackFideId "1115120"]
[WhiteElo "2092"]
[BlackElo "2664"]
[WhiteTeam "EGY"]
[BlackTeam "POL"]
[WhiteClock "0:00:07"]
[BlackClock "0:02:12"]

1. c4 {[%clk 0:03:00]}  e5 {[%clk 0:02:59]} 2. Nc3 {[%clk 0:02:58]}  Nc6 {[%clk 0:03:00]} 3. g3 {[%clk 0:02:59]}  Bc5 {[%clk 0:03:00]} 4. Bg2 {[%clk 0:02:58]}  d6 {[%clk 0:03:01]} 5. a3 {[%clk 0:02:57]}  a6 {[%clk 0:03:00]} 6. e3 {[%clk 0:02:56]}  Nge7 {[%clk 0:03:00]} 7. Nge2 {[%clk 0:02:56]}  Ba7 {[%clk 0:03:01]} 8. O-O {[%clk 0:02:56]}  O-O {[%clk 0:02:58]} 9. d4 {[%clk 0:02:57]}  exd4 {[%clk 0:02:58]} 10. exd4 {[%clk 0:02:57]}  Nf5 {[%clk 0:02:59]} 11. d5 {[%clk 0:02:53]}  Ne5 {[%clk 0:02:59]} 12. b3 {[%clk 0:02:51]}  Bd7 {[%clk 0:02:55]} 13. Bb2 {[%clk 0:02:45]}  h5 {[%clk 0:02:53]} 14. Nf4 {[%clk 0:02:36]}  h4 {[%clk 0:02:52]} 15. Nd3 {[%clk 0:02:32]}  hxg3 {[%clk 0:02:50]} 16. hxg3 {[%clk 0:02:18]}  Nxg3 {[%clk 0:02:50]} 17. Nxe5 {[%clk 0:02:09]}  dxe5 {[%clk 0:02:48]} 18. Re1 {[%clk 0:02:04]}  Qh4 {[%clk 0:02:46]} 19. Rxe5 {[%clk 0:01:09]}  Rae8 {[%clk 0:02:46]} 20. Qe1 {[%clk 0:00:49]}  Rxe5 {[%clk 0:02:37]} 21. Qxe5 {[%clk 0:00:49]}  Re8 {[%clk 0:02:37]} 22. Qxc7 {[%clk 0:00:38]}  Ne2+ {[%clk 0:02:37]} 23. Nxe2 {[%clk 0:00:38]}  Qxf2+ {[%clk 0:02:37]} 24. Kh1 {[%clk 0:00:36]}  Rxe2 {[%clk 0:02:14]} 25. Qd8+ {[%clk 0:00:14]}  Be8 {[%clk 0:02:12]} 26. Rg1 {[%clk 0:00:07]}  Qxg1# {[%clk 0:02:12]} 0-1

[Event "January 9 Late 2024"]
[Site "https://www.chess.com"]
[Date "2024.01.09"]
[Round "6"]
[White "Celestino, Rafael Teixeira"]
[Black "Coca Cubillos, Jesus Alberto"]
[Result "0-1"]
[Board "167"]
[TimeControl "180+1"]
[WhiteFideId "2108925"]
[BlackFideId "4462912"]
[WhiteElo "2224"]
[BlackElo "2516"]
[WhiteTeam "BRA"]
[BlackTeam "COL"]
[WhiteClock "0:00:04"]
[BlackClock "0:00:43"]

1. e4 {[%clk 0:03:00]}  g6 {[%clk 0:03:00]} 2. d4 {[%clk 0:03:00]}  Bg7 {[%clk 0:03:00]} 3. Nc3 {[%clk 0:03:01]}  d6 {[%clk 0:03:00]} 4. Be3 {[%clk 0:03:02]}  Nh6 {[%clk 0:03:00]} 5. f3 {[%clk 0:02:57]}  f6 {[%clk 0:02:59]} 6. h4 {[%clk 0:02:57]}  Nf7 {[%clk 0:02:58]} 7. Qd2 {[%clk 0:02:52]}  O-O {[%clk 0:02:56]} 8. h5 {[%clk 0:02:51]}  g5 {[%clk 0:02:56]} 9. f4 {[%clk 0:02:52]}  h6 {[%clk 0:02:56]} 10. fxg5 {[%clk 0:02:52]}  fxg5 {[%clk 0:02:57]} 11. Bd3 {[%clk 0:02:51]}  Nc6 {[%clk 0:02:57]} 12. Nge2 {[%clk 0:02:51]}  e5 {[%clk 0:02:57]} 13. d5 {[%clk 0:02:49]}  Ne7 {[%clk 0:02:54]} 14. Nd1 {[%clk 0:02:47]}  Kh8 {[%clk 0:02:54]} 15. Nf2 {[%clk 0:02:47]}  Ng8 {[%clk 0:02:55]} 16. c4 {[%clk 0:02:46]}  Nf6 {[%clk 0:02:55]} 17. b4 {[%clk 0:02:44]}  Ng4 {[%clk 0:02:56]} 18. O-O {[%clk 0:02:40]}  Nxf2 {[%clk 0:02:51]} 19. Rxf2 {[%clk 0:02:37]}  Bg4 {[%clk 0:02:52]} 20. Ng3 {[%clk 0:02:37]}  Qd7 {[%clk 0:02:42]} 21. c5 {[%clk 0:02:36]}  a6 {[%clk 0:02:35]} 22. Rc1 {[%clk 0:02:28]}  Kg8 {[%clk 0:02:33]} 23. Be2 {[%clk 0:02:26]}  Nh8 {[%clk 0:02:31]} 24. Rcf1 {[%clk 0:02:23]}  Rxf2 {[%clk 0:02:31]} 25. Rxf2 {[%clk 0:02:24]}  Rf8 {[%clk 0:02:29]} 26. Rxf8+ {[%clk 0:02:22]}  Kxf8 {[%clk 0:02:30]} 27. Bxg4 {[%clk 0:02:20]}  Qxg4 {[%clk 0:02:29]} 28. Qf2+ {[%clk 0:02:21]}  Nf7 {[%clk 0:02:26]} 29. Qf3 {[%clk 0:02:15]}  Qh4 {[%clk 0:02:13]} 30. a4 {[%clk 0:01:58]}  Kg8 {[%clk 0:02:09]} 31. b5 {[%clk 0:01:55]}  axb5 {[%clk 0:02:08]} 32. axb5 {[%clk 0:01:55]}  dxc5 {[%clk 0:02:09]} 33. Bxc5 {[%clk 0:01:55]}  Bf8 {[%clk 0:02:00]} 34. Bxf8 {[%clk 0:01:23]}  Kxf8 {[%clk 0:02:01]} 35. Qa3+ {[%clk 0:01:24]}  Nd6 {[%clk 0:01:38]} 36. b6 {[%clk 0:00:46]}  Kf7 {[%clk 0:01:22]} 37. bxc7 {[%clk 0:00:37]}  Nc8 {[%clk 0:01:21]} 38. Qf3+ {[%clk 0:00:36]}  Ke8 {[%clk 0:01:19]} 39. Qc3 {[%clk 0:00:23]}  Kd7 {[%clk 0:01:16]} 40. Qxe5 {[%clk 0:00:21]}  g4 {[%clk 0:01:06]} 41. Qg7+ {[%clk 0:00:14]}  Ke8 {[%clk 0:01:03]} 42. Nf5 {[%clk 0:00:10]}  Qe1+ {[%clk 0:01:00]} 43. Kh2 {[%clk 0:00:11]}  Qxe4 {[%clk 0:00:58]} 44. Qg8+ {[%clk 0:00:11]}  Kd7 {[%clk 0:00:58]} 45. Qxc8+ {[%clk 0:00:12]}  Kxc8 {[%clk 0:00:54]} 46. Nd6+ {[%clk 0:00:12]}  Kxc7 {[%clk 0:00:54]} 47. Nxe4 {[%clk 0:00:13]}  b5 {[%clk 0:00:53]} 48. Kg3 {[%clk 0:00:13]}  b4 {[%clk 0:00:53]} 49. Kf4 {[%clk 0:00:14]}  b3 {[%clk 0:00:54]} 50. Ke5 {[%clk 0:00:14]}  g3 {[%clk 0:00:53]} 51. d6+ {[%clk 0:00:14]}  Kd8 {[%clk 0:00:53]} 52. Nc5 {[%clk 0:00:14]}  b2 {[%clk 0:00:53]} 53. Ne6+ {[%clk 0:00:04]}  Kc8 {[%clk 0:00:49]} 54. Kf6 {[%clk 0:00:02]}  b1=Q {[%clk 0:00:49]} 55. Ke7 {[%clk 0:00:03]}  Qh7+ {[%clk 0:00:44]} 56. Ke8 {[%clk 0:00:02]}  Qd7+ {[%clk 0:00:44]} 57. Kf8 {[%clk 0:00:01]}  Qxe6 {[%clk 0:00:45]} 58. d7+ {[%clk 0:00:01]}  Kxd7 {[%clk 0:00:45]} 59. Kg7 {[%clk 0:00:02]}  Qg4+ {[%clk 0:00:44]} 60. Kh7 {[%clk 0:00:03]}  Ke7 {[%clk 0:00:43]} 61. Kh8 {[%clk 0:00:03]}  Kf7 {[%clk 0:00:43]} 62. Kh7 {[%clk 0:00:04]}  Qg7# {[%clk 0:00:43]} 0-1

[Event "January 9 Late 2024"]
[Site "https://www.chess.com"]
[Date "2024.01.09"]
[Round "6"]
[White "Skurikhin, Dmitrij"]
[Black "Salman, Ilhan Serhat"]
[Result "1/2-1/2"]
[Board "168"]
[TimeControl "180+1"]
[WhiteFideId "4161297"]
[BlackFideId "6361579"]
[WhiteElo "2222"]
[BlackElo "2486"]
[WhiteTeam "RUS"]
[BlackTeam "TUR"]
[WhiteClock "0:00:12"]
[BlackClock "0:00:07"]

1. d4 {[%clk 0:02:59]}  b6 {[%clk 0:02:58]} 2. Nf3 {[%clk 0:02:56]}  Bb7 {[%clk 0:02:59]} 3. c4 {[%clk 0:02:53]}  d5 {[%clk 0:02:53]} 4. cxd5 {[%clk 0:02:52]}  Nf6 {[%clk 0:02:51]} 5. Nc3 {[%clk 0:02:51]}  Nxd5 {[%clk 0:02:51]} 6. Bg5 {[%clk 0:02:43]}  h6 {[%clk 0:02:48]} 7. Bh4 {[%clk 0:02:43]}  Nd7 {[%clk 0:02:45]} 8. e3 {[%clk 0:02:42]}  N7f6 {[%clk 0:02:43]} 9. Bb5+ {[%clk 0:02:39]}  c6 {[%clk 0:02:43]} 10. Bd3 {[%clk 0:02:37]}  e6 {[%clk 0:02:42]} 11. O-O {[%clk 0:02:31]}  Be7 {[%clk 0:02:40]} 12. Qe2 {[%clk 0:02:24]}  O-O {[%clk 0:02:39]} 13. Rfd1 {[%clk 0:02:23]}  Rc8 {[%clk 0:02:38]} 14. Rac1 {[%clk 0:02:21]}  c5 {[%clk 0:02:31]} 15. a3 {[%clk 0:02:13]}  cxd4 {[%clk 0:02:30]} 16. Nxd4 {[%clk 0:02:11]}  Qd7 {[%clk 0:02:22]} 17. Nxd5 {[%clk 0:02:06]}  Bxd5 {[%clk 0:02:17]} 18. Rxc8 {[%clk 0:01:44]}  Rxc8 {[%clk 0:02:15]} 19. e4 {[%clk 0:01:17]}  Bb7 {[%clk 0:01:41]} 20. Nb5 {[%clk 0:01:11]}  g5 {[%clk 0:01:20]} 21. Bg3 {[%clk 0:01:10]}  Bc6 {[%clk 0:01:19]} 22. Nc3 {[%clk 0:01:09]}  Rd8 {[%clk 0:01:14]} 23. h4 {[%clk 0:00:57]}  Qb7 {[%clk 0:01:02]} 24. hxg5 {[%clk 0:00:55]}  hxg5 {[%clk 0:01:03]} 25. Qe3 {[%clk 0:00:51]}  Ne8 {[%clk 0:00:54]} 26. Be5 {[%clk 0:00:50]}  f6 {[%clk 0:00:39]} 27. Bg3 {[%clk 0:00:48]}  Bc5 {[%clk 0:00:34]} 28. Qe2 {[%clk 0:00:47]}  Ng7 {[%clk 0:00:28]} 29. Qg4 {[%clk 0:00:43]}  Qf7 {[%clk 0:00:19]} 30. Bc4 {[%clk 0:00:41]}  Rxd1+ {[%clk 0:00:18]} 31. Qxd1 {[%clk 0:00:40]}  Qg6 {[%clk 0:00:14]} 32. Qd8+ {[%clk 0:00:39]}  Kh7 {[%clk 0:00:14]} 33. Bd3 {[%clk 0:00:33]}  f5 {[%clk 0:00:14]} 34. exf5 {[%clk 0:00:31]}  exf5 {[%clk 0:00:15]} 35. Be5 {[%clk 0:00:30]}  Qf7 {[%clk 0:00:08]} 36. Qxg5 {[%clk 0:00:27]}  Qg6 {[%clk 0:00:07]} 37. Qh4+ {[%clk 0:00:25]}  Kg8 {[%clk 0:00:07]} 38. Qh3 {[%clk 0:00:23]}  Qg4 {[%clk 0:00:03]} 39. Qxg4 {[%clk 0:00:21]}  fxg4 {[%clk 0:00:04]} 40. Ne4 {[%clk 0:00:20]}  Bxe4 {[%clk 0:00:04]} 41. Bxe4 {[%clk 0:00:20]}  Ne6 {[%clk 0:00:04]} 42. Bd5 {[%clk 0:00:20]}  Kf7 {[%clk 0:00:03]} 43. b4 {[%clk 0:00:20]}  Be7 {[%clk 0:00:03]} 44. Kh2 {[%clk 0:00:20]}  a5 {[%clk 0:00:03]} 45. Bc3 {[%clk 0:00:19]}  axb4 {[%clk 0:00:03]} 46. axb4 {[%clk 0:00:20]}  Bd6+ {[%clk 0:00:04]} 47. g3 {[%clk 0:00:19]}  Ke7 {[%clk 0:00:05]} 48. Bxe6 {[%clk 0:00:19]}  Kxe6 {[%clk 0:00:04]} 49. Kg2 {[%clk 0:00:20]}  Kf5 {[%clk 0:00:05]} 50. b5 {[%clk 0:00:19]}  Bc5 {[%clk 0:00:05]} 51. f3 {[%clk 0:00:18]}  Bd6 {[%clk 0:00:05]} 52. Bd4 {[%clk 0:00:16]}  Bc7 {[%clk 0:00:05]} 53. fxg4+ {[%clk 0:00:15]}  Kxg4 {[%clk 0:00:05]} 54. Bf2 {[%clk 0:00:14]}  Bd8 {[%clk 0:00:06]} 55. Kf1 {[%clk 0:00:14]}  Bc7 {[%clk 0:00:06]} 56. Ke2 {[%clk 0:00:14]}  Bxg3 {[%clk 0:00:04]} 57. Bxb6 {[%clk 0:00:14]}  Bb8 {[%clk 0:00:04]} 58. Kd3 {[%clk 0:00:13]}  Kf5 {[%clk 0:00:04]} 59. Kc4 {[%clk 0:00:14]}  Ke6 {[%clk 0:00:05]} 60. Kc5 {[%clk 0:00:14]}  Kd7 {[%clk 0:00:06]} 61. Kd5 {[%clk 0:00:14]}  Kc8 {[%clk 0:00:06]} 62. Kc6 {[%clk 0:00:13]}  Bc7 {[%clk 0:00:07]} 63. Bxc7 {[%clk 0:00:12]} 1/2-1/2